bitfinex/quotes_ETHUSD_20240811
["timestamp","ask_amount","ask_price","bid_price","bid_amount"]
[1723393465590,2.67375,2618.1,2617.7,0.55]
[1723393465796,7.22,2618.2,2617.8,2.6739]
[1723393465991,7.22,2618.2,2617.9,0.55]
[1723393466154,2.67354,2618.3,2617.9,0.55]
[1723393466783,5.34712,2618.3,2617.9,0.55]
[1723393467088,2.6736,2618.2,2617.8,0.55]
[1723393467298,2.67333,2618.5,2617.8,4.09121699]
[1723393467613,2.67333,2618.5,2617.4,2.67437]
[1723393467614,2.67417,2617.7,2617.4,2.4718]
[1723393467898,2.67417,2617.7,2617.2,5.4718]
[1723393468282,2.67415,2617.7,2617.2,8.14635]
[1723393468486,2.67415,2617.7,2617.2,9.228455]
[1723393468870,2.67415,2617.7,2617.2,6.553905]
[1723393469302,5.34835,2617.7,2617.3,0.55]
[1723393469498,2.67415,2617.7,2617.3,0.55]
[1723393469866,5.09645,2617.9,2617.3,0.55]
[1723393470072,2.6741,2617.7,2617.3,0.55]
[1723393470292,5.09645,2617.9,2617.3,3.22446]
[1723393470800,5.09645,2617.9,2617.4,2.67434]
[1723393470801,2.67395,2617.9,2617.4,2.67434]
[1723393470964,9.89375,2618.1,2617.5,0.55]
[1723393471300,9.89375,2618.1,2617.7,2.4718]
[1723393471607,7.22,2618.4,2617.9,2.67388]
[1723393471771,12.28,2618.7,2617.9,2.67388]
[1723393471772,5.3467,2618.5,2618.0,0.55]
[1723393471970,7.83137,2618.5,2618.0,0.55]
[1723393472174,5.15802,2618.5,2618.0,0.55]
[1723393472509,2.48467,2618.5,2618.1,2.67368]
[1723393472805,2.48467,2618.5,2618.0,0.55]
[1723393472806,5.158,2618.5,2618.2,0.55]
[1723393472987,5.158,2618.5,2618.0,3.22373]
[1723393473173,5.158,2618.5,2618.1,2.67367]
[1723393473174,2.48467,2618.5,2618.1,2.67367]
[1723393473379,2.48467,2618.5,2618.2,0.55]
[1723393473380,2.67339,2618.4,2618.2,0.55]
[1723393473692,0.515806,2618.4,2618.0,0.55]
[1723393473862,2.48467,2618.5,2618.0,3.22374]
[1723393474062,2.67319,2618.6,2618.1,2.67362]
[1723393474263,2.67319,2618.6,2618.2,0.55]
[1723393474564,22.17314,2618.7,2618.2,3.0218]
[1723393474872,2.67324,2618.6,2618.2,3.0218]
[1723393475808,2.67345,2618.4,2618.2,0.55]
[1723393475965,2.67345,2618.4,2618.1,0.55]
[1723393476676,5.132824,2618.6,2618.1,0.55]
[1723393476878,2.67329,2618.5,2618.1,0.55]
[1723393477283,2.67345,2618.4,2618.1,0.55]
[1723393480002,7.22,2618.7,2618.1,0.55]
[1723393480232,2.67329,2618.5,2618.1,0.55]
[1723393480736,2.67328,2618.6,2618.1,0.55]
[1723393480938,7.22,2618.7,2618.1,3.22369]
[1723393481229,2.67324,2618.6,2618.1,3.22363]
[1723393481429,2.67324,2618.6,2618.1,5.89727]
[1723393481596,2.67324,2618.6,2618.1,3.30001184]
[1723393481796,5.34648,2618.6,2618.1,3.30001184]
[1723393482134,2.67325,2618.6,2618.1,0.55]
[1723393482298,2.67343,2618.4,2618.1,0.55]
[1723393483401,2.67343,2618.4,2618.0,0.55]
[1723393483825,2.67325,2618.6,2618.1,2.67369]
[1723393483826,2.67318,2618.6,2618.1,2.67369]
[1723393484027,2.67318,2618.6,2618.2,3.0218]
[1723393484194,2.67328,2618.5,2618.2,3.0218]
[1723393486027,2.67328,2618.5,2618.2,0.55]
[1723393486233,2.67339,2618.4,2618.1,0.55]
[1723393486856,2.67349,2618.3,2618.1,0.55]
[1723393487034,2.67337,2618.5,2618.1,0.55]
[1723393488853,5.34651,2618.6,2618.1,3.22368]
[1723393489346,5.34651,2618.6,2618.1,4.062983]
[1723393489508,2.67325,2618.6,2618.1,4.062983]
[1723393489922,9.89308,2618.7,2618.1,4.062983]
[1723393490213,9.89308,2618.7,2618.1,0.55]
[1723393490214,2.67349,2618.3,2618.1,0.55]
[1723393490422,2.6733,2618.5,2618.1,0.55]
[1723393490627,5.34668,2618.5,2618.1,0.55]
[1723393491043,2.6733,2618.5,2618.1,0.55]
[1723393492019,9.89316,2618.7,2618.1,3.22363]
[1723393492226,2.6732,2618.6,2618.1,3.87196496]
[1723393492423,2.6732,2618.6,2618.1,3.87195496]
[1723393492856,2.6732,2618.6,2618.1,3.795573]
[1723393493070,2.6732,2618.6,2618.1,6.469213]
[1723393493359,2.67329,2618.5,2618.1,3.795573]
[1723393493558,2.67329,2618.5,2618.1,3.22362]
[1723393493869,2.67359,2618.2,2618.1,0.55]
[1723393494157,2.6735,2618.3,2618.1,0.55]
[1723393496331,2.67359,2618.2,2618.1,0.55]
[1723393496536,2.588145,2618.3,2617.7,2.4959]
[1723393496735,2.67366,2618.2,2617.7,2.4959]
[1723393496959,2.67366,2618.2,2617.7,5.16999]
[1723393497875,2.67366,2618.2,2617.7,7.84403]
[1723393498034,2.67354,2618.3,2617.8,3.22398]
[1723393498261,3.172864,2618.4,2617.8,3.22392]
[1723393498508,2.67344,2618.4,2617.9,2.67389]
[1723393498662,2.67325,2618.6,2618.0,0.55]
[1723393498862,2.67325,2618.6,2618.1,2.4959]
[1723393498863,2.67333,2618.5,2618.1,2.4959]
[1723393499066,2.67333,2618.5,2618.2,0.55]
[1723393500504,2.67333,2618.5,2617.7,5.16991]
[1723393500505,2.67354,2618.3,2617.7,5.16991]
[1723393500719,2.67354,2618.3,2617.8,2.67399]
[1723393500880,5.3471,2618.3,2617.9,0.55]
[1723393501616,2.67354,2618.3,2617.9,0.55]
[1723393502420,3.930018,2618.5,2617.9,3.22381]
[1723393502880,0.3930018,2618.4,2617.9,0.55]
[1723393503216,2.67349,2618.3,2617.4,2.67434]
[1723393503374,2.67393,2617.9,2617.4,2.67434]
[1723393503576,2.67421,2617.6,2617.3,2.4959]
[1723393504089,2.67401,2617.8,2617.1,2.67464]
[1723393504275,2.3208,2618.1,2617.1,2.67464]
[1723393504276,2.67421,2617.6,2617.1,2.67464]
[1723393504679,4.99451,2618.1,2616.9,2.4959]
[1723393504680,2.3208,2618.0,2616.9,2.4959]
[1723393504995,2.3208,2617.1,2616.3,2.4959]
[1723393505201,2.6752,2616.7,2616.3,2.4959]
[1723393505391,2.6752,2616.7,2616.0,2.4959]
[1723393505592,4.99553,2617.1,2615.5,0.66120022]
[1723393505593,2.67553,2616.3,2615.7,5.17199]
[1723393505843,2.67553,2616.3,2615.7,6.19677722]
[1723393506136,2.67581,2616.1,2615.7,1.02479722]
[1723393506337,2.67581,2616.1,2615.5,2.67628]
[1723393506543,2.67581,2616.1,2615.5,2.67627]
[1723393506764,2.67581,2616.1,2615.5,5.35256]
[1723393507150,5.35118,2616.3,2615.6,5.67624]
[1723393507332,2.67572,2616.2,2615.6,3.535256]
[1723393507528,2.67582,2616.1,2615.6,3.0]
[1723393507743,2.67593,2616.0,2615.3,7.68139]
[1723393507948,2.67593,2616.0,2615.4,3.444519]
[1723393508166,2.67593,2616.0,2615.4,0.768139]
[1723393508371,2.67593,2616.0,2615.5,2.67631]
[1723393509040,2.67574,2616.1,2615.5,2.67631]
[1723393509376,5.3512,2616.3,2615.6,0.55]
[1723393509585,2.67559,2616.3,2615.7,2.67609]
[1723393509786,5.43914,2616.7,2615.6,0.9494409]
[1723393509787,2.67519,2616.7,2616.1,2.67564]
[1723393510083,2.67529,2616.6,2616.2,0.55]
[1723393510386,2.67519,2616.7,2616.2,0.55]
[1723393511281,5.3504,2616.7,2616.2,0.55]
[1723393511480,2.67519,2616.7,2616.2,0.55]
[1723393511793,5.67498,2616.9,2616.4,2.67536]
[1723393511794,2.67498,2616.9,2616.4,2.67536]
[1723393512095,2.67498,2616.9,2616.5,0.55]
[1723393512295,2.67473,2617.1,2616.5,0.55]
[1723393512608,2.3473,2617.3,2616.5,0.55]
[1723393512749,0.23473,2617.2,2616.5,0.55]
[1723393512952,2.67497,2616.9,2616.5,0.55]
[1723393513353,5.34954,2617.1,2616.5,3.22532]
[1723393513585,2.67475,2617.1,2616.5,3.22532]
[1723393513788,5.3491,2617.3,2616.6,2.6752]
[1723393513973,5.34908,2617.3,2616.7,3.22511]
[1723393514182,2.67462,2617.2,2616.7,0.55]
[1723393514356,2.67493,2616.9,2616.7,0.55]
[1723393514556,2.67493,2616.9,2616.6,0.55]
[1723393515849,2.67493,2616.9,2616.3,5.67551]
[1723393516045,2.67493,2616.9,2616.4,3.22541]
[1723393516300,2.67493,2616.9,2616.4,1.440099]
[1723393516447,2.67507,2616.8,2616.4,0.55]
[1723393516653,2.67515,2616.7,2616.4,0.55]
[1723393516954,2.67507,2616.8,2616.4,0.55]
[1723393517666,2.67488,2617.0,2616.4,0.55]
[1723393517865,2.67466,2617.2,2616.5,2.75170306]
[1723393518168,5.34933,2617.2,2616.7,2.67509]
[1723393518371,2.67466,2617.2,2616.8,0.55]
[1723393518665,2.67471,2617.1,2616.8,0.55]
[1723393518871,2.67471,2617.1,2616.6,2.3284]
[1723393518872,2.67471,2617.1,2616.7,0.55]
[1723393522589,2.67483,2617.0,2616.7,0.55]
[1723393522894,2.67493,2616.9,2616.7,0.55]
[1723393523103,2.67483,2617.0,2616.7,0.55]
[1723393523389,2.67493,2616.9,2616.5,0.55]
[1723393523604,2.3473,2617.2,2616.2,2.3284]
[1723393523605,2.67528,2616.6,2616.2,2.3284]
[1723393524056,2.3473,2617.2,2616.2,2.3284]
[1723393524057,2.67542,2616.5,2616.2,2.3284]
[1723393524253,2.67492,2616.9,2615.8,5.35193]
[1723393524254,2.67563,2616.3,2615.8,2.3284]
[1723393524482,2.67563,2616.2,2615.8,2.3284]
[1723393524699,2.67563,2616.2,2615.5,2.67633]
[1723393524700,2.67584,2616.0,2615.5,2.67629]
[1723393524894,2.67584,2616.0,2615.3,5.00489]
[1723393525094,2.67605,2615.8,2615.4,0.500489]
[1723393525399,2.67614,2615.7,2615.2,2.67665]
[1723393525605,2.67625,2615.6,2615.1,2.67669]
[1723393526272,2.67635,2615.5,2615.0,2.3284]
[1723393526601,2.6763,2615.6,2615.0,5.773466]
[1723393526761,2.67622,2615.7,2615.1,2.67669]
[1723393526957,7.22,2615.8,2615.5,2.67627]
[1723393527362,7.22,2615.8,2615.6,2.67619]
[1723393527772,7.22,2615.8,2615.6,2.943809]
[1723393527958,7.22,2615.8,2615.7,5.71884]
[1723393528706,7.22,2615.8,2615.7,0.55]
[1723393529502,7.22,2615.8,2615.5,0.55]
[1723393530764,7.22,2615.8,2615.5,3.22634]
[1723393530959,32.15,2616.1,2615.5,3.22634]
[1723393531166,32.15,2616.1,2615.7,2.67609]
[1723393531491,32.15,2616.1,2615.8,0.55]
[1723393531679,2.6757,2616.2,2615.8,0.55]
[1723393532370,5.35139,2616.2,2615.8,0.55]
[1723393532570,2.67593,2616.0,2615.8,0.55]
[1723393532892,2.67593,2616.0,2615.4,3.0]
[1723393532893,2.67594,2615.9,2615.6,0.55]
[1723393533087,2.67594,2615.9,2615.5,0.55]
[1723393533274,2.67612,2615.8,2615.5,0.55]
[1723393534308,2.67612,2615.8,2615.4,0.55]
[1723393534669,2.67625,2615.6,2615.4,0.55]
[1723393534989,2.67615,2615.7,2615.2,6.22657]
[1723393535191,2.67604,2615.8,2615.3,2.67655]
[1723393535363,2.67604,2615.8,2615.4,0.55]
[1723393538416,2.6762,2615.7,2615.4,0.55]
[1723393538716,2.6762,2615.7,2615.3,0.55]
[1723393539712,2.67601,2615.9,2615.3,3.2265]
[1723393540106,2.67606,2615.8,2615.3,3.2265]
[1723393540335,2.67606,2615.8,2615.3,3.22649]
[1723393540635,2.67606,2615.8,2615.3,4.116809]
[1723393541004,2.67615,2615.7,2615.3,4.116809]
[1723393541530,2.67601,2615.9,2615.3,4.116809]
[1723393542118,2.67621,2615.7,2615.3,1.440319]
[1723393542425,2.67621,2615.7,2615.3,0.55]
[1723393543256,2.67601,2615.9,2615.3,3.22655]
[1723393543459,9.8958,2616.1,2615.5,2.67629]
[1723393543735,2.67555,2616.3,2615.8,2.67599]
[1723393544097,2.67555,2616.3,2615.9,0.55]
[1723393544493,2.67555,2616.3,2615.8,0.55]
[1723393544902,2.67555,2616.3,2615.8,3.22602]
[1723393545322,2.67555,2616.3,2615.8,5.90198]
[1723393545519,2.67555,2616.3,2615.8,3.22596]
[1723393546109,2.67555,2616.3,2615.8,6.49980921]
[1723393546307,7.22,2616.4,2615.8,3.22596]
[1723393546508,7.22,2616.4,2615.9,4.94272]
[1723393546710,9.89546,2616.4,2616.0,0.55]
[1723393547149,7.22,2616.4,2616.0,3.22583]
[1723393548254,2.67554,2616.3,2616.0,0.55]
[1723393548408,2.67554,2616.3,2615.9,0.55]
[1723393549842,2.67564,2616.2,2615.9,0.55]
[1723393550406,9.89549,2616.4,2615.9,3.22592]
[1723393550611,2.67561,2616.3,2615.9,0.55]
[1723393550847,2.67561,2616.3,2615.8,2.67603]
[1723393550848,2.67575,2616.1,2615.6,4.94297]
[1723393551409,7.22,2616.4,2615.7,0.07645672]
[1723393551616,7.22,2616.4,2615.8,2.67603]
[1723393551617,2.67553,2616.3,2615.8,2.67603]
[1723393552119,2.67553,2616.3,2615.9,0.55]
[1723393552448,2.67563,2616.2,2615.9,0.55]
[1723393554049,5.35101,2616.4,2615.9,3.22593]
[1723393554351,42.04517,2616.7,2616.2,2.67554]
[1723393554568,2.67517,2616.7,2616.3,0.55]
[1723393555240,2.67517,2616.7,2616.3,3.22552]
[1723393555441,2.67517,2616.7,2616.3,0.55]
[1723393555646,2.67517,2616.7,2616.2,3.22558]
[1723393556057,9.89499,2616.9,2616.4,2.67542]
[1723393556279,2.67499,2616.9,2616.5,0.55]
[1723393557267,2.67479,2617.1,2616.6,2.67514]
[1723393557475,2.67479,2617.1,2616.7,0.55]
[1723393558668,2.67477,2617.1,2616.7,0.55]
[1723393558870,7.22,2617.2,2616.6,0.55]
[1723393558871,2.67502,2616.8,2616.6,0.55]
[1723393559633,2.67502,2616.8,2616.1,2.2668]
[1723393559634,2.67512,2616.7,2616.1,2.67568]
[1723393559965,2.67528,2616.6,2616.2,3.0]
[1723393560782,2.6751,2616.8,2616.2,5.67561]
[1723393561274,2.67524,2616.6,2616.2,3.0]
[1723393561462,2.67524,2616.6,2616.3,0.55]
[1723393563180,2.67533,2616.5,2616.3,0.55]
[1723393563364,2.67539,2616.5,2615.8,4.94283]
[1723393563571,2.67539,2616.5,2615.9,0.55]
[1723393563740,2.67539,2616.5,2615.9,3.22593]
[1723393563942,22.17494,2616.9,2616.3,2.67552]
[1723393564272,22.17494,2616.9,2616.4,0.55]
[1723393564582,5.127324,2616.9,2616.4,0.55]
[1723393564868,2.67494,2616.9,2616.4,0.55]
[1723393565282,2.3489,2617.1,2616.4,0.55]
[1723393565450,2.3489,2617.1,2615.9,4.94268]
[1723393565451,2.6755,2616.4,2615.9,4.94268]
[1723393565839,2.6755,2616.4,2615.7,2.67613]
[1723393565840,2.67554,2616.3,2615.8,2.67598]
[1723393565980,2.67539,2616.5,2616.0,2.67578]
[1723393566195,2.67539,2616.5,2616.1,0.55]
[1723393566497,2.67539,2616.5,2616.1,3.22573]
[1723393566657,2.67518,2616.7,2616.1,6.292388]
[1723393566860,5.14334,2616.9,2616.3,2.67547]
[1723393567076,2.67502,2616.8,2616.4,3.22542]
[1723393567390,2.67502,2616.8,2616.4,0.55]
[1723393567887,2.67514,2616.7,2616.4,0.55]
[1723393568102,2.764,2617.5,2616.4,0.55]
[1723393568103,2.4684,2617.4,2616.6,2.4765]
[1723393568387,2.67441,2617.4,2617.0,2.67476]
[1723393568588,2.67451,2617.3,2617.1,0.55]
[1723393569171,2.67451,2617.3,2616.9,0.55]
[1723393569390,2.67453,2617.3,2616.9,0.55]
[1723393569559,2.67476,2617.1,2616.7,6.22512]
[1723393569761,2.67453,2617.3,2616.8,2.675]
[1723393569961,2.67453,2617.3,2616.7,4.687678]
[1723393569962,2.6743,2617.6,2617.0,2.6748]
[1723393570258,2.6743,2617.6,2616.9,3.2249]
[1723393570259,2.67427,2617.6,2616.9,3.2249]
[1723393570460,3.46494,2617.6,2616.9,3.2249]
[1723393570664,6.13924,2617.6,2617.0,2.67481]
[1723393570860,3.46494,2617.6,2617.1,0.55]
[1723393571060,6.1392,2617.6,2617.1,0.55]
[1723393571366,6.13919,2617.6,2617.1,0.55]
[1723393571876,3.46493,2617.6,2617.1,3.2247]
[1723393572082,3.46492,2617.6,2617.1,3.2247]
[1723393572587,2.764,2617.8,2617.2,2.6746]
[1723393572588,2.67406,2617.8,2617.2,2.6746]
[1723393572791,2.67406,2617.8,2617.1,3.0265]
[1723393572792,2.67385,2618.0,2617.4,2.67433]
[1723393572993,2.67385,2618.0,2617.4,3.00440429]
[1723393573331,2.67385,2618.0,2617.1,3.0265]
[1723393573332,2.67369,2618.1,2617.6,7.8249]
[1723393573496,0.76679694,2618.3,2617.6,7.8249]
[1723393573497,5.34766,2618.0,2617.7,0.55]
[1723393573658,2.67394,2617.9,2617.7,0.55]
[1723393573859,0.534766,2618.0,2617.7,0.55]
[1723393574190,3.208576,2618.0,2617.5,3.22429]
[1723393574374,2.67364,2618.2,2617.6,2.67419]
[1723393574577,2.67375,2618.1,2617.7,0.55]
[1723393574792,0.61141869,2618.1,2617.7,0.55]
[1723393575759,3.28516869,2618.1,2617.7,0.55]
[1723393576761,3.28516869,2618.1,2617.4,2.7507078]
[1723393576762,2.6736,2618.2,2617.6,2.67419]
[1723393576979,2.6736,2618.2,2617.7,0.55]
[1723393577185,2.6736,2618.2,2617.7,3.22403]
[1723393577410,0.76679694,2618.3,2617.8,2.67399]
[1723393577565,3.44029694,2618.3,2617.9,0.55]
[1723393577766,7.22,2618.4,2617.9,3.22383]
[1723393577981,9.89341,2618.4,2617.9,3.22383]
[1723393578598,2.67341,2618.4,2618.0,2.67378]
[1723393578822,7.22,2618.7,2618.1,0.55]
[1723393579106,2.67321,2618.6,2618.1,3.22368]
[1723393580470,2.67328,2618.5,2618.1,0.55]
[1723393581398,9.89317,2618.7,2618.1,3.22366]
[1723393582370,2.67318,2618.6,2618.1,3.22366]
[1723393582575,9.89317,2618.7,2618.1,3.22366]
[1723393582763,9.89317,2618.7,2618.2,2.67353]
[1723393582964,9.89316,2618.7,2618.3,0.55]
[1723393583170,12.5663,2618.7,2618.3,0.55]
[1723393583369,2.67324,2618.6,2618.3,0.55]
[1723393583600,2.67324,2618.6,2618.1,0.55]
[1723393583980,2.67329,2618.5,2618.1,0.55]
[1723393584305,2.67354,2618.3,2617.8,2.4765]
[1723393584521,0.989329,2618.5,2617.3,5.15099]
[1723393584522,2.4684,2618.2,2617.3,5.15099]
[1723393584716,2.67391,2617.9,2617.3,2.4765]
[1723393584894,2.67391,2617.9,2617.3,5.151]
[1723393585091,2.67374,2618.1,2617.6,2.67414]
[1723393585844,2.67374,2618.1,2617.4,2.67431]
[1723393585984,5.2324,2618.4,2617.3,2.4765]
[1723393585985,2.67405,2617.8,2617.3,2.4765]
[1723393586187,2.67381,2618.0,2617.3,5.4765]
[1723393586408,2.67381,2618.0,2617.5,2.67421]
[1723393586606,2.67365,2618.2,2617.5,2.6743]
[1723393586920,2.67375,2618.1,2617.5,0.81508]
[1723393587080,2.67375,2618.1,2617.6,2.6742]
[1723393587283,2.67375,2618.1,2617.7,0.55]
[1723393588094,2.6733,2618.5,2618.0,2.67373]
[1723393588313,2.67314,2618.7,2618.2,2.67356]
[1723393588483,2.67314,2618.7,2618.3,0.55]
[1723393589684,2.67318,2618.6,2618.3,0.55]
[1723393589908,2.67318,2618.6,2618.2,0.55]
[1723393590110,2.67318,2618.6,2618.2,3.22358]
[1723393590327,7.22,2619.1,2618.5,2.67328]
[1723393590508,25.21529,2619.2,2618.6,3.2231]
[1723393590712,2.67269,2619.1,2618.6,3.2231]
[1723393591224,22.54263,2619.2,2618.7,2.67306]
[1723393591433,2.67263,2619.2,2618.8,0.55]
[1723393593643,5.34527,2619.2,2618.8,0.55]
[1723393593816,7.22,2619.3,2618.8,0.55]
[1723393593817,9.89252,2619.3,2618.8,0.55]
[1723393594513,2.67257,2619.2,2618.8,0.55]
[1723393594715,2.67257,2619.2,2618.7,0.55]
[1723393595020,2.67257,2619.2,2618.5,2.67321]
[1723393595021,2.67257,2619.2,2618.6,0.62636451]
[1723393595353,2.67272,2619.1,2618.7,0.32995745]
[1723393595525,2.67272,2619.1,2618.8,0.55]
[1723393596029,2.67272,2619.1,2618.6,0.55]
[1723393596030,2.67282,2619.0,2618.6,0.55]
[1723393596237,2.67289,2618.9,2618.5,3.55]
[1723393596424,2.67289,2618.9,2618.5,4.623361]
[1723393596743,2.67289,2618.9,2618.5,0.55]
[1723393596908,2.67289,2618.9,2618.3,2.3868]
[1723393596909,2.67301,2618.8,2618.4,0.55]
[1723393597109,2.67301,2618.8,2618.3,2.3868]
[1723393597110,2.67318,2618.6,2618.3,2.3868]
[1723393598646,2.67318,2618.6,2618.4,0.55]
[1723393598823,2.67318,2618.6,2618.4,0.54871365]
[1723393599023,2.67328,2618.5,2618.4,0.54871365]
[1723393599247,2.67318,2618.6,2618.0,10.73427]
[1723393599555,2.67318,2618.6,2618.1,2.67368]
[1723393599765,2.67318,2618.6,2618.2,3.0]
[1723393599929,2.67318,2618.6,2618.0,11.301644]
[1723393600129,2.67305,2618.8,2618.0,11.301644]
[1723393600130,2.67305,2618.8,2618.2,2.67358]
[1723393600531,9.4741,2619.0,2618.4,2.67332]
[1723393600532,9.89284,2619.0,2618.4,2.67332]
[1723393600875,7.22,2619.0,2618.4,2.67332]
[1723393601028,7.22,2619.0,2618.6,2.67317]
[1723393601231,7.22,2619.0,2618.7,0.55]
[1723393601459,2.6727,2619.1,2618.7,0.55]
[1723393601460,2.67254,2619.3,2618.8,2.3868]
[1723393601734,9.89245,2619.4,2618.9,0.55]
[1723393603060,2.67257,2619.2,2618.9,0.55]
[1723393604369,7.22,2619.4,2619.0,2.67274]
[1723393604673,7.22,2619.4,2619.1,3.22266]
[1723393604833,9.89236,2619.4,2619.1,0.55]
[1723393605035,2.67278,2619.0,2618.5,5.566092]
[1723393605238,2.67278,2619.0,2618.6,3.55]
[1723393605434,2.67278,2619.0,2618.6,0.55]
[1723393605682,2.67304,2618.8,2618.5,2.3868]
[1723393606237,2.67283,2619.0,2618.5,2.3868]
[1723393606446,2.67288,2618.9,2618.5,2.3868]
[1723393606685,2.67258,2619.2,2618.7,2.67306]
[1723393606868,2.67247,2619.3,2618.8,2.67297]
[1723393607042,2.67247,2619.3,2618.9,0.55]
[1723393607238,7.22,2619.4,2619.1,2.67264]
[1723393607577,7.22,2619.4,2619.0,2.3624]
[1723393607751,2.67273,2619.1,2618.7,2.3624]
[1723393607950,2.67273,2619.1,2618.8,0.55]
[1723393608152,2.67253,2619.3,2618.8,6.22296]
[1723393608344,7.22,2619.4,2618.8,7.6993673]
[1723393608542,9.89239,2619.4,2618.9,2.67287]
[1723393608770,9.89239,2619.4,2618.8,0.55]
[1723393608771,2.67273,2619.1,2618.8,0.55]
[1723393608973,2.67278,2619.0,2618.6,3.55]
[1723393609174,5.34529,2619.2,2618.6,3.22312]
[1723393609687,7.22,2619.4,2618.6,0.55]
[1723393609983,2.67261,2619.2,2618.6,0.55]
[1723393610482,2.67278,2619.0,2618.6,0.55]
[1723393610981,5.34527,2619.2,2618.6,3.22317]
[1723393611478,2.67268,2619.1,2618.6,3.22317]
[1723393611643,2.67261,2619.2,2618.8,2.3624]
[1723393611846,2.67261,2619.2,2618.9,0.55]
[1723393612478,2.6725,2619.3,2618.9,0.55]
[1723393612689,2.67262,2619.2,2618.9,0.55]
[1723393613671,9.89242,2619.4,2618.9,3.22285]
[1723393613999,9.89242,2619.4,2618.9,0.55]
[1723393614195,9.89242,2619.4,2618.9,3.22286]
[1723393614478,7.22,2619.4,2618.9,4.12505173]
[1723393614653,7.22,2619.4,2619.1,2.67266]
[1723393614858,7.22,2619.4,2619.2,0.55]
[1723393615589,9.89237,2619.4,2619.2,0.55]
[1723393615754,7.22,2619.4,2619.2,0.55]
[1723393616360,2.67246,2619.3,2619.2,0.55]
[1723393617006,7.22,2619.4,2619.2,0.55]
[1723393617153,5.34463,2619.5,2619.2,0.55]
[1723393617352,2.6724,2619.4,2619.2,0.55]
[1723393617545,2.67251,2619.3,2619.0,0.55]
[1723393617750,2.67251,2619.3,2618.9,0.55]
[1723393617965,2.67263,2619.2,2618.9,0.55]
[1723393618191,2.67263,2619.2,2618.7,3.22301]
[1723393620154,2.67237,2619.4,2618.8,2.67297]
[1723393620355,29.5498,2619.8,2618.9,2.9124]
[1723393620552,2.67206,2619.7,2619.2,2.6725]
[1723393620887,29.76202,2619.8,2619.1,2.3624]
[1723393620888,2.67217,2619.6,2619.1,2.3624]
[1723393621192,2.67227,2619.5,2619.2,0.55]
[1723393621560,2.67223,2619.6,2619.0,0.55]
[1723393621764,2.67223,2619.6,2619.0,3.22271]
[1723393621765,2.67227,2619.5,2619.0,3.22271]
[1723393621999,2.67246,2619.4,2619.0,0.55]
[1723393622293,2.67227,2619.5,2619.0,3.22275]
[1723393622453,5.34462,2619.5,2619.0,3.22275]
[1723393622662,5.3446,2619.5,2619.0,3.22275]
[1723393622872,2.67227,2619.5,2619.0,0.55]
[1723393623593,29.76197,2619.8,2619.1,2.67261]
[1723393623790,2.67213,2619.7,2619.2,0.55]
[1723393624095,2.67213,2619.7,2619.2,3.22255]
[1723393624892,27.09,2619.8,2619.3,2.67246]
[1723393625094,27.09,2619.8,2619.4,2.9124]
[1723393625258,9.89173,2620.1,2619.5,2.67219]
[1723393625562,9.89173,2620.1,2619.6,0.55]
[1723393625563,2.67186,2619.9,2619.6,0.55]
[1723393625763,9.89173,2620.1,2619.6,3.22216]
[1723393625963,9.89173,2620.1,2619.6,2.67216]
[1723393626167,9.89173,2620.1,2619.7,0.55]
[1723393626397,7.22,2620.1,2619.7,1.194441]
[1723393626555,39.37,2620.4,2619.8,2.4731]
[1723393626764,9.89139,2620.4,2619.9,0.55]
[1723393627004,9.89139,2620.4,2619.9,0.91494354]
[1723393627363,0.0876052,2620.5,2620.4,5.34268]
[1723393627706,0.0876052,2620.5,2620.4,5.96899334]
[1723393627857,0.0876052,2620.5,2620.4,3.29765334]
[1723393628058,0.0876052,2620.5,2620.4,5.89268]
[1723393628260,0.0876052,2620.5,2620.4,9.20998929]
[1723393628458,0.0876052,2620.5,2620.4,14.88132929]
[1723393630215,2.3984,2622.0,2621.4,2.67026]
[1723393630514,2.66957,2622.2,2621.6,2.6701]
[1723393630515,5.33914,2622.2,2621.6,2.6701]
[1723393630674,2.3984,2622.3,2621.7,0.55]
[1723393630675,2.66967,2622.1,2621.7,0.55]
[1723393630877,2.3984,2622.3,2621.5,0.55]
[1723393630878,2.66957,2622.2,2621.5,0.55]
[1723393631076,2.3984,2622.3,2621.5,0.55]
[1723393631077,2.66979,2622.0,2621.5,0.55]
[1723393631412,2.3984,2622.3,2621.3,5.14352]
[1723393631413,2.3984,2622.3,2621.4,0.55]
[1723393631980,2.3984,2622.3,2621.5,0.0762818]
[1723393632182,2.66972,2622.0,2621.6,0.55]
[1723393632715,2.66972,2622.0,2621.4,0.55]
[1723393632924,5.33953,2622.0,2621.4,3.22032]
[1723393633123,5.8554,2622.2,2621.5,2.67015]
[1723393633445,5.8554,2622.2,2621.4,3.22032]
[1723393633446,0.51624,2622.2,2621.6,0.55]
[1723393633601,2.66993,2621.8,2621.6,0.55]